fUST/lending_fUST_20241203
["ID","MTS","AMOUNT","RATE_DAILY","PERIOD"]
[343964470,1733158235677,-500.0,0.00027796,2]
[343964471,1733158235689,-500.0,0.00027796,2]
[343964472,1733158235701,-500.0,0.00027796,2]
[343964473,1733158235711,-500.0,0.00027796,2]
[343964474,1733158235721,-585.33693114,0.00027796,2]
[343964475,1733158235732,-500.0,0.00027796,2]
[343964476,1733158235742,-500.0,0.00027796,2]
[343964477,1733158235753,-500.0,0.00027796,2]
[343964478,1733158235764,-500.0,0.00027796,2]
[343964479,1733158235776,-500.0,0.00027796,2]
[343964480,1733158235787,-500.0,0.00027796,2]
[343964481,1733158235797,-500.0,0.00027796,2]
[343964482,1733158235807,-500.0,0.00027796,2]
[343964483,1733158235818,-500.0,0.00027796,2]
[343964484,1733158235829,-500.0,0.00027796,2]
[343964485,1733158235840,-500.0,0.00027796,2]
[343964486,1733158235852,-500.0,0.00027796,2]
[343964487,1733158235865,-500.0,0.00027796,2]
[343964488,1733158235876,-500.0,0.00027796,2]
[343964489,1733158235887,-500.0,0.00027796,2]
[343964490,1733158235897,-500.0,0.00027796,2]
[343964491,1733158235908,-500.0,0.00027796,2]
[343964492,1733158235923,-500.0,0.00027796,2]
[343964493,1733158235935,-500.0,0.00027796,2]
[343964494,1733158235947,-500.0,0.00027796,2]
[343964495,1733158235958,-500.0,0.00027796,2]
[343964496,1733158235969,-500.0,0.00027796,2]
[343964497,1733158235980,-500.0,0.00027796,2]
[343964498,1733158235991,-500.0,0.00027796,2]
[343964499,1733158236002,-500.0,0.00027796,2]
[343964500,1733158236012,-500.0,0.00027796,2]
[343964501,1733158236022,-500.0,0.00027796,2]
[343964502,1733158236033,-500.0,0.00027796,2]
[343964503,1733158236044,-500.0,0.00027796,2]
[343964504,1733158236055,-500.0,0.00027796,2]
[343964505,1733158236065,-219.20080892,0.00027796,2]
[343964506,1733158236075,-500.0,0.00027796,2]
[343964507,1733158236086,-500.0,0.00027796,2]
[343964508,1733158236096,-500.0,0.00027808,7]
[343964509,1733158236106,-168.0,0.00027808,7]
[343964510,1733158236117,-186.8,0.00027808,7]
[343964511,1733158236127,-500.0,0.00027808,7]
[343964512,1733158236249,-500.0,0.00027808,7]
[343964513,1733158236260,-1797.05,0.00027808,7]
[343964514,1733158236270,-500.0,0.00027808,7]
[343964515,1733158236280,-500.0,0.00027808,7]
[343964516,1733158236289,-500.0,0.00027808,7]
[343964517,1733158236298,-1000.0,0.00027921,5]
[343964518,1733158236307,-1898.46,0.00027935,10]
[343964519,1733158236317,-500.0,0.00027945,7]
[343964520,1733158236326,-500.0,0.00027945,7]
[343964521,1733158236335,-500.0,0.00027945,7]
[343964522,1733158236345,-423.34006538,0.00027945,7]
[343964523,1733158236355,-500.0,0.00027945,7]
[343964524,1733158236365,-500.0,0.00027945,7]
[343964525,1733158236375,-500.0,0.00027945,7]
[343964526,1733158236384,-773.59,0.00027945,7]
[343964527,1733158236393,-2654.56,0.00027945,7]
[343964528,1733158236402,-503.4663938,0.00028073,5]
[343964529,1733158236414,-168.0,0.00028082,7]
[343964530,1733158236424,-500.0,0.00028082,7]
[343964531,1733158236433,-335.51029485,0.00028082,7]
[343964532,1733158236443,-1797.05,0.00028082,7]
[343964533,1733158236453,-500.0,0.00028082,7]
[343964534,1733158236462,-500.0,0.00028082,7]
[343964535,1733158236472,-500.0,0.00028219,7]
[343964536,1733158236481,-500.0,0.00028219,7]
[343964537,1733158236491,-500.00000086,0.00028219,7]
[343964538,1733158236500,-500.0,0.00028219,7]
[343964539,1733158236510,-500.0,0.00028219,7]
[343964540,1733158236519,-773.59,0.00028219,7]
[343964541,1733158236528,-2654.56,0.00028219,7]
[343964542,1733158236537,-168.0,0.00028356,7]
[343964543,1733158236547,-1797.05,0.00028356,7]
[343964544,1733158236556,-500.0,0.00028356,7]
[343964545,1733158236566,-813.98249331,0.00028374,2]
[343964546,1733158236576,-1691.42889241,0.00028443,2]
[343964547,1733158236585,-500.0,0.00028493,7]
[343964548,1733158236595,-324.26997985,0.00028493,7]
[343964549,1733158236605,-500.0,0.00028493,7]
[343964550,1733158236615,-500.0,0.00028493,7]
[343964551,1733158236625,-773.59,0.00028493,7]
[343964552,1733158236636,-2654.56,0.00028493,7]
[343964553,1733158236647,-168.0,0.0002863,7]
[343964554,1733158236658,-1797.05,0.0002863,7]
[343964555,1733158236672,-156.95245966,0.0002863,7]
[343964556,1733158236687,-500.0,0.00028767,4]
[343964557,1733158236706,-500.0,0.00028767,7]
[343964558,1733158236726,-25.52988159,0.00028767,7]
[343964559,1733158236780,-474.47011841,0.00028767,7]
[343964560,1733158236790,-500.0,0.00028767,7]
[343964561,1733158236800,-773.59,0.00028767,7]
[343964562,1733158236810,-2654.56,0.00028767,7]
[343964563,1733158236820,-200.503338,0.00028776,2]
[343964564,1733158236830,-172.183979,0.00028776,2]
[343964565,1733158236840,-193.340086,0.00028776,2]
[343964566,1733158236858,-154.339905,0.00028776,2]
[343964567,1733158236868,-7.83374185,0.00028776,2]
[343964568,1733158236888,-1489.3647926,0.00027935,10]
[343964595,1733158239500,-500.0,0.00027534,7]
[343964596,1733158239510,-385.18479458,0.00027796,2]
[343964597,1733158239521,-500.0,0.00027808,7]
[343964598,1733158239531,-92.6852074,0.00027935,10]
[343964599,1733158239541,-168.46870515,0.00028776,2]
[343964600,1733158239551,-172.183979,0.00028776,2]
[343964601,1733158239561,-200.503336,0.00028776,2]
[343964602,1733158239570,-153.39,0.000288,31]
[343964603,1733158239580,-153.39,0.000288,31]
[343964604,1733158239590,-153.39,0.000288,31]
[343964605,1733158239599,-39.590908,0.000288,31]
[343964606,1733158239611,-113.799092,0.000288,31]
[343964607,1733158239620,-153.39,0.000288,31]
[343964608,1733158239629,-153.39,0.000288,31]
[343964609,1733158239640,-153.39,0.000288,31]
[343964610,1733158239651,-153.39,0.000288,31]
[343964611,1733158239660,-153.39,0.000288,31]
[343964612,1733158239674,-153.39,0.000288,31]
[343964613,1733158239685,-168.0,0.00028904,7]
[343964614,1733158239694,-1797.05,0.00028904,7]
[343964615,1733158239703,-500.0,0.00028922,5]
[343964616,1733158239713,-500.0,0.00029041,7]
[343964617,1733158239723,-813.98249331,0.00029041,2]
[343964618,1733158239733,-500.0,0.00029041,7]
[343964619,1733158239743,-500.0,0.00029041,7]
[343964620,1733158239753,-773.59,0.00029041,7]
[343964621,1733158239763,-2654.56,0.00029041,7]
[343964622,1733158239772,-8972.36109248,0.00029132,2]
[343964623,1733158239783,-168.0,0.00029178,7]
[343964624,1733158239792,-1797.05,0.00029178,7]
[343964625,1733158239801,-153.39,0.000292,31]
[343964626,1733158239811,-153.39,0.000292,31]
[343964627,1733158239821,-153.39,0.000292,31]
[343964628,1733158239830,-153.39,0.000292,31]
[343964629,1733158239840,-153.39,0.000292,31]
[343964631,1733158239850,-153.39,0.000292,31]
[343964632,1733158239863,-153.39,0.000292,31]
[343964634,1733158239872,-153.39,0.000292,31]
[343964635,1733158239881,-153.39,0.000292,31]
[343964636,1733158239891,-153.39,0.000292,31]
[343964637,1733158239901,-153.39,0.000292,31]
[343964639,1733158239911,-153.39,0.000292,31]
[343964640,1733158239923,-153.39,0.000292,31]
[343964642,1733158239933,-153.39,0.000292,31]
[343964643,1733158239943,-153.39,0.000292,31]
[343964644,1733158239953,-153.39,0.000292,31]
[343964645,1733158239962,-153.39,0.000292,31]
[343964646,1733158239972,-153.39,0.000292,31]
[343964647,1733158239982,-153.39,0.000292,31]
[343964648,1733158239991,-153.39,0.000292,31]
[343964649,1733158240001,-155.10652678,0.0002924,2]
[343964650,1733158240011,-520.30328,0.00029315,7]
[343964651,1733158240021,-500.0,0.00029315,7]
[343964652,1733158240031,-350.78520736,0.00029315,7]
[343964653,1733158240040,-773.59,0.00029315,7]
[343964654,1733158240050,-2654.56,0.00029315,7]
[343964655,1733158240060,-1691.42889241,0.00029409,2]
[343964656,1733158240069,-172.35,0.00029452,7]
[343964657,1733158240079,-1797.05,0.00029452,7]
[343964658,1733158240088,-459.89,0.00029489,15]
[343964659,1733158240098,-193.340086,0.00029495,2]
[343964660,1733158240107,-8972.36109248,0.00029535,2]
[343964661,1733158240117,-500.0,0.00029589,7]
[343964662,1733158240126,-773.59,0.00029589,7]
[343964663,1733158240135,-2654.56,0.00029589,7]
[343964664,1733158240145,-153.39,0.000296,31]
[343964665,1733158240154,-153.39,0.000296,31]
[343964666,1733158240166,-153.39,0.000296,31]
[343964667,1733158240176,-153.39,0.000296,31]
[343964668,1733158240185,-153.39,0.000296,31]
[343964669,1733158240195,-153.39,0.000296,31]
[343964670,1733158240204,-153.39,0.000296,31]
[343964671,1733158240214,-153.39,0.000296,31]
[343964672,1733158240298,-153.39,0.000296,31]
[343964673,1733158240309,-153.39,0.000296,31]
[343964674,1733158240319,-153.39,0.000296,31]
[343964675,1733158240329,-153.39,0.000296,31]
[343964676,1733158240338,-153.39,0.000296,31]
[343964678,1733158240348,-153.39,0.000296,31]
[343964680,1733158240358,-153.39,0.000296,31]
[343964681,1733158240368,-153.39,0.000296,31]
[343964682,1733158240378,-153.39,0.000296,31]
[343964683,1733158240387,-153.39,0.000296,31]
[343964684,1733158240397,-153.39,0.000296,31]
[343964685,1733158240409,-153.39,0.000296,31]
[343964686,1733158240423,-420.0,0.00029606,2]
[343964687,1733158240432,-150.0,0.00029607,2]
[343964688,1733158240442,-813.98249331,0.00029708,2]
[343964689,1733158240452,-1797.05,0.00029726,7]
[343964690,1733158240461,-8972.36109248,0.00029858,2]
[343964691,1733158240471,-500.0,0.00029863,7]
[343964692,1733158240481,-773.59,0.00029863,7]
[343964693,1733158240490,-2654.56,0.00029863,7]
[343964694,1733158240500,-153.39,0.0003,31]
[343964695,1733158240510,-153.39,0.0003,31]
[343964696,1733158240520,-153.39,0.0003,31]
[343964697,1733158240529,-153.39,0.0003,31]
[343964698,1733158240539,-153.39,0.0003,31]
[343964699,1733158240548,-153.39,0.0003,31]
[343964700,1733158240557,-153.39,0.0003,31]
[343964701,1733158240567,-153.39,0.0003,31]
[343964702,1733158240576,-153.39,0.0003,31]
[343964703,1733158240586,-153.39,0.0003,31]
[343964704,1733158240595,-153.39,0.0003,31]
[343964705,1733158240604,-153.39,0.0003,31]
[343964706,1733158240614,-153.39,0.0003,31]
[343964707,1733158240624,-153.39,0.0003,31]
[343964708,1733158240633,-153.39,0.0003,31]
[343964709,1733158240642,-153.39,0.0003,31]
[343964710,1733158240651,-153.39,0.0003,31]
[343964711,1733158240660,-153.39,0.0003,31]
[343964712,1733158240674,-153.39,0.0003,31]
[343964713,1733158240683,-153.39,0.0003,31]
[343964714,1733158240693,-1797.05,0.0003,7]
[343964715,1733158240702,-172.0,0.0003,2]
[343964716,1733158240713,-784.63234294,0.00030026,2]
[343964717,1733158240723,-8972.36109248,0.00030057,2]
[343964718,1733158240732,-1465.5,0.000301,2]
[343964719,1733158240741,-152.39915339,0.00030113,2]
[343964720,1733158240750,-980.83052185,0.00030136,3]
[343964721,1733158240760,-500.0,0.00030136,6]
[343964722,1733158240770,-500.0,0.00030136,7]
[343964723,1733158240779,-773.59,0.00030136,7]
[343964724,1733158240792,-2654.56,0.00030136,7]
[343964725,1733158240801,-420.0,0.00030136,2]
[343964726,1733158240811,-197.042322,0.00030137,120]
[343964727,1733158240821,-8972.36109251,0.00030175,2]
[343964728,1733158240830,-154.339905,0.00030215,2]
[343964729,1733158240840,-193.340086,0.00030215,2]
[343964730,1733158240851,-1797.05,0.00030274,7]
[343964731,1733158240863,-666.0,0.00030367,2]
[343964732,1733158240874,-813.98249331,0.00030375,2]
[343964733,1733158240883,-1691.42889241,0.00030375,2]
[343964734,1733158240894,-6666.0,0.00030377,2]
[343964735,1733158240904,-762.47,0.000304,2]
[343964736,1733158240914,-153.39,0.000304,31]
[343964737,1733158240929,-153.39,0.000304,31]
[343964738,1733158240941,-153.39,0.000304,31]
[343964739,1733158240952,-153.39,0.000304,31]
[343964740,1733158240963,-153.39,0.000304,31]
[343964741,1733158240973,-153.39,0.000304,31]
[343964742,1733158240982,-153.39,0.000304,31]
[343964743,1733158240991,-153.39,0.000304,31]
[343964744,1733158241001,-153.39,0.000304,31]
[343964745,1733158241011,-153.39,0.000304,31]
[343964746,1733158241020,-153.39,0.000304,31]
[343964747,1733158241030,-500.0,0.0003041,7]
[343964748,1733158241039,-773.59,0.0003041,7]
[343964749,1733158241049,-2654.56,0.0003041,7]
[343964750,1733158241058,-150.5,0.00030437,120]
[343964751,1733158241068,-187.5,0.00030437,120]
[343964752,1733158241078,-150.5,0.00030447,120]
[343964753,1733158241087,-150.5,0.00030447,120]
[343964754,1733158241097,-150.5,0.00030457,120]
[343964755,1733158241106,-150.5,0.00030457,120]
[343964756,1733158241115,-151.0,0.00030467,7]
[343964757,1733158241125,-168.530228,0.00030467,7]
[343964758,1733158241135,-151.0,0.00030467,7]
[343964759,1733158241144,-151.0,0.00030467,7]
[343964760,1733158241154,-154.572936,0.00030467,7]
[343964761,1733158241163,-296.87945,0.00030467,7]
[343964762,1733158241178,-296.87945,0.00030467,7]
[343964763,1733158241187,-296.87945,0.00030467,7]
[343964764,1733158241197,-296.87945,0.00030467,7]
[343964765,1733158241206,-296.87945,0.00030467,7]
[343964766,1733158241215,-296.87945,0.00030467,7]
[343964767,1733158241224,-296.87945,0.00030467,7]
[343964768,1733158241234,-296.87945,0.00030467,7]
[343964769,1733158241243,-151.0,0.00030467,7]
[343964770,1733158241253,-151.0,0.00030467,7]
[343964771,1733158241262,-151.0,0.00030467,7]
[343964772,1733158241271,-151.0,0.00030467,7]
[343964773,1733158241280,-151.0,0.00030467,7]
[343964774,1733158241290,-151.0,0.00030467,7]
[343964775,1733158241300,-296.87945,0.00030472,7]
[343964776,1733158241309,-296.87945,0.00030472,7]
[343964777,1733158241319,-296.87945,0.00030472,7]
[343964778,1733158241328,-296.87945,0.00030472,7]
[343964779,1733158241338,-296.87945,0.00030472,7]
[343964780,1733158241350,-296.87945,0.00030472,7]
[343964781,1733158241359,-296.87945,0.00030472,7]
[343964782,1733158241369,-157.033705,0.00030472,7]
[343964783,1733158241379,-157.033705,0.00030472,7]
[343964784,1733158241388,-157.033705,0.00030472,7]
[343964785,1733158241397,-157.033705,0.00030472,7]
[343964786,1733158241406,-157.033705,0.00030472,7]
[343964787,1733158241416,-157.033705,0.00030472,7]
[343964788,1733158241431,-157.033705,0.00030472,7]
[343964789,1733158241441,-157.033705,0.00030472,7]
[343964790,1733158241450,-157.033705,0.00030472,7]
[343964791,1733158241459,-157.033705,0.00030472,7]
[343964792,1733158241468,-157.033705,0.00030472,7]
[343964793,1733158241478,-157.033705,0.00030472,7]
[343964794,1733158241487,-157.033705,0.00030472,7]
[343964795,1733158241499,-157.033705,0.00030472,7]
[343964796,1733158241508,-157.033705,0.00030472,7]
[343964797,1733158241517,-157.033705,0.00030472,7]
[343964798,1733158241527,-157.033705,0.00030472,7]
[343964799,1733158241536,-157.033705,0.00030472,7]
[343964800,1733158241546,-157.033705,0.00030472,7]
[343964801,1733158241555,-157.033703,0.00030472,7]
[343964802,1733158241564,-151.0,0.00030472,7]
[343964803,1733158241574,-156.165391,0.00030472,7]
[343964804,1733158241583,-151.0,0.00030472,7]
[343964805,1733158241592,-151.0,0.00030472,7]
[343964806,1733158241602,-151.0,0.00030472,7]
[343964807,1733158241612,-155.105461,0.00030472,7]
[343964808,1733158241620,-151.0,0.00030472,7]
[343964809,1733158241630,-151.0,0.00030472,7]
[343964810,1733158241640,-151.0,0.00030472,7]
[343964811,1733158241650,-218.842112,0.00030472,7]
[343964812,1733158241660,-152.707552,0.00030472,7]
[343964813,1733158241675,-151.0,0.00030472,7]
[343964814,1733158241685,-151.0,0.00030472,7]
[343964815,1733158241695,-151.0,0.00030472,7]
[343964816,1733158241708,-151.0,0.00030472,7]
[343964817,1733158241717,-151.0,0.00030472,7]
[343964818,1733158241726,-151.0,0.00030472,7]
[343964819,1733158241736,-151.0,0.00030472,7]
[343964820,1733158241747,-151.0,0.00030472,7]
[343964821,1733158241757,-151.0,0.00030472,7]
[343964822,1733158241766,-151.0,0.00030472,7]
[343964823,1733158241776,-151.0,0.00030472,7]
[343964824,1733158241785,-151.0,0.00030472,7]
[343964825,1733158241795,-151.0,0.00030472,7]
[343964826,1733158241804,-151.0,0.00030472,7]
[343964827,1733158241816,-265.275831,0.00030472,7]
[343964828,1733158241826,-151.0,0.00030472,7]
[343964829,1733158241837,-162.27067,0.00030472,7]
[343964830,1733158241849,-151.0,0.00030472,7]
[343964831,1733158241860,-151.0,0.00030472,7]
[343964832,1733158241871,-151.0,0.00030472,7]
[343964833,1733158241881,-151.0,0.00030472,7]
[343964834,1733158241892,-151.0,0.00030472,7]
[343964835,1733158241901,-151.0,0.00030472,7]
[343964836,1733158241911,-151.0,0.00030472,7]
[343964837,1733158241926,-151.0,0.00030472,7]
[343964838,1733158241937,-151.0,0.00030472,7]
[343964839,1733158241947,-151.0,0.00030472,7]
[343964840,1733158241957,-151.0,0.00030472,7]
[343964841,1733158241967,-151.0,0.00030472,7]
[343964842,1733158241977,-151.0,0.00030472,7]
[343964843,1733158241988,-151.0,0.00030472,7]
[343964844,1733158241997,-151.0,0.00030472,7]
[343964845,1733158242006,-151.0,0.00030472,7]
[343964846,1733158242016,-151.0,0.00030472,7]
[343964847,1733158242026,-151.975445,0.00030472,7]
[343964848,1733158242036,-151.0,0.00030472,7]
[343964849,1733158242046,-151.0,0.00030472,7]
[343964850,1733158242056,-298.142172,0.00030472,7]
[343964851,1733158242066,-151.0,0.00030472,7]
[343964852,1733158242078,-151.0,0.00030472,7]
[343964853,1733158242090,-151.0,0.00030472,7]
[343964854,1733158242100,-151.0,0.00030472,7]
[343964855,1733158242110,-151.0,0.00030472,7]
[343964857,1733158242120,-151.0,0.00030472,7]
[343964859,1733158242130,-151.0,0.00030472,7]
[343964860,1733158242140,-151.0,0.00030472,7]
[343964861,1733158242149,-186.837728,0.00030472,7]
[343964862,1733158242159,-169.275719,0.00030472,7]
[343964863,1733158242172,-169.275719,0.00030472,7]
[343964864,1733158242182,-169.275719,0.00030472,7]
[343964865,1733158242191,-169.275719,0.00030472,7]
[343964866,1733158242202,-169.275719,0.00030472,7]
[343964867,1733158242211,-169.275719,0.00030472,7]
[343964869,1733158242220,-169.275719,0.00030472,7]
[343964871,1733158242230,-169.275719,0.00030472,7]
[343964872,1733158242239,-169.275719,0.00030472,7]
[343964873,1733158242249,-169.275719,0.00030472,7]
[343964874,1733158242258,-169.275719,0.00030472,7]
[343964875,1733158242268,-169.275719,0.00030472,7]
[343964877,1733158242278,-169.275719,0.00030472,7]
[343964878,1733158242287,-169.275719,0.00030472,7]
[343964879,1733158242297,-169.275719,0.00030472,7]
[343964880,1733158242306,-169.275719,0.00030472,7]
[343964881,1733158242315,-169.275719,0.00030472,7]
[343964882,1733158242326,-169.275719,0.00030472,7]
[343964884,1733158242338,-169.275719,0.00030472,7]
[343964885,1733158242347,-169.275717,0.00030472,7]
[343964886,1733158242357,-501.55140692,0.00030472,11]
[343964887,1733158242366,-500.95874668,0.00030473,5]
[343964888,1733158242376,-500.0,0.00030473,5]
[343964889,1733158242386,-334.0397932,0.00030473,2]
[343964890,1733158242395,-222.73805917,0.00030475,2]
[343964891,1733158242405,-59939.7097986,0.00030475,2]
[343964892,1733158242415,-329.89407,0.00030475,7]
[343964893,1733158242430,-329.89407,0.00030475,7]
[343964894,1733158242439,-329.89407,0.00030475,7]
[343964895,1733158242449,-329.89407,0.00030475,7]
[343964896,1733158242459,-329.89407,0.00030475,7]
[343964897,1733158242468,-329.89407,0.00030475,7]
[343964898,1733158242478,-329.89407,0.00030475,7]
[343964899,1733158242487,-329.89407,0.00030475,7]
[343964900,1733158242497,-329.89407,0.00030475,7]
[343964901,1733158242507,-329.89407,0.00030475,7]
[343964902,1733158242516,-329.89407,0.00030475,7]
[343964904,1733158242525,-329.89407,0.00030475,7]
[343964906,1733158242534,-329.89407,0.00030475,7]
[343964908,1733158242544,-329.89407,0.00030475,7]
[343964909,1733158242554,-329.89407,0.00030475,7]
[343964910,1733158242563,-329.89407,0.00030475,7]
[343964911,1733158242572,-329.89407,0.00030475,7]
[343964912,1733158242582,-329.89407,0.00030475,7]
[343964913,1733158242592,-329.89407,0.00030475,7]
[343964914,1733158242601,-329.89408,0.00030475,7]
[343964915,1733158242611,-151.0,0.00030475,7]
[343964916,1733158242619,-151.0,0.00030475,7]
[343964917,1733158242629,-151.0,0.00030475,7]
[343964918,1733158242638,-151.0,0.00030475,7]
[343964919,1733158242647,-151.0,0.00030475,7]
[343964920,1733158242656,-151.0,0.00030475,7]
[343964921,1733158242666,-151.0,0.00030475,7]
[343964922,1733158242679,-151.0,0.00030475,7]
[343964923,1733158242688,-151.0,0.00030475,7]
[343964926,1733158242776,-151.0,0.00030475,7]
[343964927,1733158242786,-890479.75218665,0.00030475,10]
[343964928,1733158242834,-482.000066,0.00029489,15]
[343964929,1733158242846,-32.276424,0.00029489,15]
[343964930,1733158242859,-285.553956,0.00030475,7]
[343964931,1733158242868,-648.19962,0.00030475,10]
[343964932,1733158242880,-3629.09999995,0.00030475,10]
[343964953,1733158243373,-27249.06754563,0.00030475,10]
[343964954,1733158243385,-2419.04928168,0.00030475,10]
[343964955,1733158243396,-23164.03105206,0.00030475,10]
[343964956,1733158243408,-4396.16763012,0.00030475,10]
[343964957,1733158243421,-17940.67694545,0.00030475,10]
[343964984,1733158246355,-1507.37,0.00030465,10]
[343964985,1733158246365,-2124.03000006,0.00030475,10]
[343964986,1733158427497,197.042322,0.00030137,120]
[343964988,1733158454189,1199.0,0.00030472,120]
[343964990,1733158473392,289.514484,0.00013973,2]
[343964992,1733158553730,150.0,0.00030472,120]
[343964994,1733158729308,150.5,0.0003046,120]
[343964995,1733158729914,150.5,0.0003045,120]
[343964996,1733158730433,150.5,0.0003044,120]
[343964997,1733158731123,150.5,0.0003046,120]
[343964998,1733158731583,150.5,0.0003045,120]
[343964999,1733158732046,187.5,0.0003044,120]
[343965000,1733159016785,2513.957678,0.0003047,120]
[343965002,1733159101522,283.180433,0.00013973,2]
[343965050,1733159347301,-153.54672734,0.00019899,2]
[343965051,1733159347324,-300.0,0.00019999,2]
[343965052,1733159347348,-300.0,0.00019999,2]
[343965053,1733159347373,-1169.27083333,0.0002,2]
[343965054,1733159347398,-500.0,0.0002,2]
[343965055,1733159347423,-500.0,0.0002,2]
[343965056,1733159347447,-447.17271329,0.0002,2]
[343965057,1733159347473,-283.180433,0.00020447,2]
[343965058,1733159347502,-420.0,0.00021777,2]
[343965059,1733159347527,-420.0,0.00021999,2]
[343965060,1733159347552,-587.0,0.00023712,2]
[343965061,1733159347671,-587.0,0.00024199,2]
[343965062,1733159347699,-17289.4518244,0.00024208,2]
[343965063,1733159347721,-823.0,0.00026619,2]
[343965064,1733159347747,-283.180433,0.00026921,2]
[343965065,1733159347768,-3000.0,0.000273,2]
[343965066,1733159347791,-3000.0,0.0002731,2]
[343965067,1733159347812,-3000.0,0.0002732,2]
[343965068,1733159347833,-5826.66171,0.0002733,2]
[343965069,1733159347854,-500.0,0.00027373,2]
[343965070,1733159347880,-319.9177678,0.00027397,2]
[343965071,1733159347903,-1169.27083333,0.00027397,7]
[343965072,1733159347925,-500.0,0.00027397,7]
[343965073,1733159347946,-500.0,0.00027397,7]
[343965074,1733159347968,-500.0,0.00027397,7]
[343965075,1733159347995,-500.0,0.00027397,7]
[343965076,1733159348016,-500.0,0.00027397,7]
[343965077,1733159348036,-500.0,0.00027397,7]
[343965078,1733159348057,-500.0,0.00027397,7]
[343965079,1733159348078,-500.0,0.00027397,7]
[343965080,1733159348099,-500.0,0.00027397,7]
[343965081,1733159348121,-500.0,0.00027397,7]
[343965082,1733159348143,-207.90954709,0.00027397,7]
[343965083,1733159348164,-500.0,0.00027397,7]
[343965084,1733159348186,-500.0,0.00027397,7]
[343965085,1733159348213,-500.0,0.00027397,7]
[343965086,1733159348243,-500.0,0.00027397,7]
[343965087,1733159348281,-500.0,0.00027397,7]
[343965088,1733159348320,-500.0,0.00027397,7]
[343965089,1733159348343,-384.73480572,0.00027397,7]
[343965090,1733159348364,-500.0,0.00027397,7]
[343965091,1733159348385,-500.0,0.00027397,7]
[343965092,1733159348407,-494.72,0.00027397,7]
[343965093,1733159348428,-500.0,0.00027397,7]
[343965094,1733159348449,-500.0,0.00027397,7]
[343965095,1733159348474,-500.0,0.00027397,7]
[343965096,1733159348497,-500.0,0.00027397,7]
[343965097,1733159348522,-500.0,0.00027397,7]
[343965098,1733159348565,-500.0,0.00027397,7]
[343965099,1733159348587,-500.0,0.00027397,7]
[343965100,1733159348609,-500.0,0.00027397,7]
[343965101,1733159348631,-500.0,0.00027397,7]
[343965102,1733159348653,-500.0,0.00027397,7]
[343965103,1733159348678,-226.89366266,0.00027397,7]
[343965104,1733159348702,-500.0,0.00027397,7]
[343965105,1733159348726,-500.0,0.00027397,7]
[343965106,1733159348755,-168.0,0.00027397,7]
[343965107,1733159348781,-500.0,0.00027397,7]
[343965108,1733159348804,-500.0,0.00027397,7]
[343965109,1733159348825,-503.74640126,0.00027397,7]
[343965110,1733159348847,-500.0,0.00027397,7]